Cogmind - Beta 15 @@@ ROGUE MODE // 2025.06.22 @ 22:12:16 Player: Burcsboon Result: Destroyed by H-61 Shepherd with Heavy Assault Cannon Performance ------------- Evolutions (2) 1000 Regions Visited (3) 600 Robots Destroyed (30) 150 Value Destroyed (701) 701 Prototype IDs (3) 60 Alien Tech Used (0) 0 Bonus (0) 0 TOTAL SCORE: 2511 Bonus ------- None Cogmind --------- Core Integrity 0/550 Matter 295/300 Energy 276/280 System Corruption 0% Temperature Cool (4) Movement Walking (130) Location -8/Materials Parts ------- > --- POWER (1) -------- Cooled Ion Engine > --- PROPULSION (4) --- Titanium Leg Wheel Wheel Hover Unit > --- UTILITY (4) ------ Visual Processing Unit > --- WEAPON (2) ------- Advanced Beam Cannon > --- INVENTORY (5) ---- Small Storage Unit ECM Suite Reaction Control System Light Armor Plating Reflective Plating Peak State ------------ > --- POWER ------------ Improved Ion Engine > --- PROPULSION ------- Aluminum Leg Aluminum Leg Aluminum Leg Aerolev Unit > --- UTILITY ---------- Medium Storage Unit Visual Processing Unit Core Shielding Field Recycling Unit > --- WEAPON ----------- Assault Rifle Grenade Launcher > --- INVENTORY -------- Flight Unit Flight Unit Heat Sink Small Storage Unit ECM Suite Reaction Control System Light Armor Plating Reflective Plating [Rating: 18] Favorites ----------- Power Ion Engine Engine Ion Engine Propulsion Aluminum Leg Leg Aluminum Leg Wheel Wheel Hover Unit Aerolev Unit Flight Unit Flight Unit Utility Visual Processing Unit Device Field Recycling Unit Storage Small Storage Unit Processor Visual Processing Unit Protection Core Shielding Weapon Assault Rifle Energy Cannon Advanced Beam Cannon Ballistic Gun Assault Rifle Launcher Grenade Launcher Build | -11 -10 -9 -8 ------- Run | Yrd Mat Mat Mat Slots Evolved 4 | . . 2 2 Power . | . . . . Propulsion 2 | . . 2 . Utility 2 | . . . 2 Weapon . | . . . . Parts Attached 28 | 6 1 5 16 Power 5 | 1 . 1 3 Engine 5 | 1 . 1 3 Core . | . . . . Reactor . | . . . . Propulsion 12 | 2 . 3 7 Treads . | . . . . Leg 6 | 2 . 3 1 Wheel 2 | . . . 2 Hover 2 | . . . 2 Flight 2 | . . . 2 Utility 7 | 1 1 1 4 Device 2 | . . . 2 Storage 2 | 1 . . 1 Processor 1 | . . . 1 Hackware . | . . . . Protection 2 | . 1 1 . Artifact . | . . . . Weapon 4 | 2 . . 2 Energy Gun . | . . . . Energy Cannon 1 | . . . 1 Ballistic Gun 2 | 2 . . . Ballistic Cannon . | . . . . Launcher 1 | . . . 1 Special Weapon . | . . . . Impact Weapon . | . . . . Slashing Weapon . | . . . . Piercing Weapon . | . . . . Special Melee Weapon . | . . . . Unidentified Prototypes 3 | . . . 3 Parts Lost 17 | . . 2 15 Power 3 | . . 1 2 Propulsion 7 | . . . 7 Utility 4 | . . 1 3 Weapon 3 | . . . 3 Highest Loss Streak 11 | . . 1 11 To Critical Strikes . | . . . . Average Backups 6 | 2 6 7 6 Power . | . 1 . . Propulsion 1 | . 3 2 1 Utility 3 | . . 2 4 Weapon . | . 1 1 . Tool/Special . | . . . . Unused Backups 9 | . . 3 6 Power 1 | . . . 1 Propulsion 2 | . . 2 . Utility 5 | . . . 5 Weapon 1 | . . 1 . Tool/Special . | . . . . Average Slot Usage (%) 82 | . 98 92 73 Engine 9 | . 14 11 7 Leg 23 | . 28 37 17 Wheel 1 | . . . 2 Hover 2 | . . . 3 Device 5 | . . . 8 Storage 8 | . 14 11 6 Processor 5 | . . . 9 Protection 8 | . 12 10 5 Energy Cannon 1 | . . . 3 Ballistic Gun 13 | . 28 22 6 Launcher 1 | . . . 1 Peak Build Rating 18 | 6 7 10 18 Average Rating 10 | 4 6 8 12 On Entrance 5 | . 6 7 10 Naked Turns . | . . . . Heaviest Build 31 | 14 17 17 31 Greatest Support 40 | 20 20 40 40 Greatest Overweight (x) 9 | . . . 9 Average Overweight (x) . | . . . . Largest Inventory Capacity 10 | 8 8 8 10 Average Capacity 8 | 6 8 8 8 Most Carried 9 | 5 8 8 9 Average Carried 6 | 2 6 7 6 Final Capacity 8 | 8 8 8 5 Final Carried 8 | 4 8 8 5 Class Distribution -------------------- 60% | Mutant 39% | Scavenger-Mutant Dominant Class ---------------- Mutant | -10/Materials Mutant | -9/Materials Scavenger-Mutant | -8/Materials Resources | -11 -10 -9 -8 ----------- Run | Yrd Mat Mat Mat Matter Collected 919 | 129 88 388 314 Remotely . | . . . . Salvage Created 768 | . 88 429 251 Parts 58 | . 8 30 20 Haulers Intercepted . | . . . . Recyclers Shooed . | . . . . Parts Field Recycled . | . . . . Retrieved Matter . | . . . . Parts Self-Destructed . | . . . . Prevented . | . . . . Kills | -11 -10 -9 -8 ------- Run | Yrd Mat Mat Mat Combat Hostiles Destroyed 22 | . 6 8 8 Guns 20 | . 6 8 6 Cannons 2 | . . . 2 Classes Destroyed 7 | . 1 3 3 Worker 3 | . . . 3 Builder 1 | . . . 1 Operator 1 | . . . 1 Watcher 3 | . . 2 1 Swarmer 10 | . 6 . 4 Grunt 6 | . . 4 2 Sentry 6 | . . 4 2 Best Kill Streak 4 | . 4 3 4 Combat Bots Only 4 | . 4 2 4 Max Kills in Single Turn 2 | . 1 1 2 Gunslinging . | . . . . Exploded . | . . . . Melee . | . . . . Uniques/NPCs Destroyed . | . . . . Combat | -11 -10 -9 -8 -------- Run | Yrd Mat Mat Mat Hostile Shots Fired 222 | . 42 32 148 Missed 50 | . 12 8 30 Hits 172 | . 30 24 118 Projectile 172 | . 30 24 118 Critical Strikes 9 | . 1 . 8 Actively Blocked 2 | . . . 2 Damage Taken 2259 | . 236 311 1712 Core 607 | . 23 28 556 Absorbed by Shields . | . . . . Redirected to Shielding 51 | . . 6 45 Core Remaining (%) 94 | 100 90 93 . Volleys Fired 130 | . 16 30 84 Largest 2 | . 2 2 2 Hottest 68 | . 40 40 68 Shots Fired 190 | . 32 60 98 Gun 133 | . 32 60 41 Cannon 48 | . . . 48 Launcher 9 | . . . 9 Special . | . . . . Kinetic 133 | . 32 60 41 Thermal 48 | . . . 48 Explosive 9 | . . . 9 Electromagnetic . | . . . . Robot Hit Streak 8 | . 7 7 8 Robot Miss Streak 5 | . 5 5 4 Penetration Max . | . . . . Secondary Targets 1 | . . . 1 Max Gunslinging Chain 1 | . . . 1 Shots Hit Robots 100 | . 14 36 50 Core Hits 54 | . 7 17 30 Critical Kills . | . . . . Critical Parts Destroyed . | . . . . Critical Strikes . | . . . . Melee Attacks . | . . . . Impact . | . . . . Slashing . | . . . . Piercing . | . . . . Sneak Attacks . | . . . . Combat Hostiles . | . . . . Follow-up Attacks . | . . . . Damage Inflicted 1991 | . 189 466 1336 Guns 963 | . 189 466 308 Cannons 553 | . . . 553 Explosions 475 | . . . 475 Melee . | . . . . Ramming . | . . . . Kinetic 963 | . 189 466 308 Thermal 553 | . . . 553 Explosive 475 | . . . 475 Electromagnetic . | . . . . Impact . | . . . . Slashing . | . . . . Piercing . | . . . . Highest Corruption 2 | . . 2 . Average Corruption 2 | . . 2 . Corruption Purged . | . . . . Corruption Blocked . | . . . . Effects 1 | . . 1 . Message Errors 1 | . . 1 . Overload Shots . | . . . . Overflow Damage 29 | . . . 29 Projectiles 18 | . . . 18 Explosions 11 | . . . 11 Melee . | . . . . Knockbacks . | . . . . Impact . | . . . . Kinetic . | . . . . Secondary . | . . . . Self-Inflicted Damage 32 | . . . 32 Shots 1 | . . . 1 Rammed . | . . . . Targets Rammed . | . . . . Kicked . | . . . . Crushed . | . . . . Highest Temperature 93 | . . . 93 Average Temperature 28 | . . . 28 Received Heat Transfer 864 | . . 135 729 Siege Activations . | . . . . Martial Activations . | . . . . Shielding Activations . | . . . . Robots Disrupted . | . . . . Combat Hostiles . | . . . . Robots Corrupted . | . . . . Combat Hostiles . | . . . . Parts Fried . | . . . . Impact Corruptions . | . . . . Robots Melted . | . . . . Combat Hostiles . | . . . . Parts Melted . | . . . . Heat Transferred 999 | . . . 999 Parts Sabotaged . | . . . . Parts Stolen . | . . . . Parts Stripped . | . . . . Power Chain Reactions . | . . . . Alert | -11 -10 -9 -8 ------- Run | Yrd Mat Mat Mat Maximum Alert Level . | . . . . Low Security (%) 100 | 100 100 100 100 Level 1 . | . . . . Level 2 . | . . . . Level 3 . | . . . . Level 4 . | . . . . Level 5 . | . . . . High Security . | . . . . Max Security . | . . . . Peak Influence 125 | . 125 77 75 Initial 18 | . . 18 14 Average 28 | . 59 45 14 Influence Increases 684 | . 185 214 285 Destroy 0b10 Robot/C 440 | . 120 160 160 Destroy 0b10 Robot/NC 40 | . . 10 30 Destroy Leader 106 | . 20 44 42 Disable Machine 30 | . 15 . 15 Destroy Structure 23 | . . . 23 Lose Combat Pursuer 45 | . 30 . 15 Influence Decreases 684 | . 140 225 319 Entered New Map 47 | . . 27 20 Time Decay 562 | . 140 188 234 Lost Part 75 | . . 10 65 Squads Dispatched 3 | . . . 3 Investigation . | . . . . Extermination . | . . . . Reinforcement 3 | . . . 3 Assault . | . . . . Garrison . | . . . . Intercept . | . . . . Searches Triggered . | . . . . Construction Impeded . | . . . . Haulers Reinforced . | . . . . Active Scanning Responses . | . . . . Cargo Convoy Interrupts . | . . . . Stealth | -11 -10 -9 -8 --------- Run | Yrd Mat Mat Mat Distress Signals 3 | . 1 2 . Communications Jammed . | . . . . Distress Signals . | . . . . Times Spotted 47 | . 10 12 25 Peak Tracking Total 7 | . 5 3 7 Tactical Retreats 2 | . 1 . 1 Traps | -11 -10 -9 -8 ------- Run | Yrd Mat Mat Mat Traps Triggered 3 | . 2 1 . Indirectly . | . . . . Trap Hack Attempts . | . . . . Triggered . | . . . . Disarmed . | . . . . Reprogrammed . | . . . . Reused . | . . . . Traps Extracted . | . . . . Installed . | . . . . Triggered . | . . . . Machines | -11 -10 -9 -8 ---------- Run | Yrd Mat Mat Mat Machines Disabled 2 | . 1 . 1 Max in Single Turn 1 | . 1 . 1 Machines Repaired . | . . . . Machines Dismantled . | . . . . Machines Sabotaged . | . . . . Overloaded Fab Kills . | . . . . Hacking | -11 -10 -9 -8 --------- Run | Yrd Mat Mat Mat Machines Accessed . | . . . . Terminals . | . . . . Fabricators . | . . . . Repair Stations . | . . . . Recycling Units . | . . . . Scanalyzers . | . . . . Garrison Access . | . . . . Total Hacks . | . . . . Successful . | . . . . Failed . | . . . . Catastrophic . | . . . . Database Lockouts . | . . . . Manual . | . . . . Terminals . | . . . . Fabricators . | . . . . Repair Stations . | . . . . Recycling Units . | . . . . Scanalyzers . | . . . . Garrison Access . | . . . . Terminal Hacks . | . . . . Fabricator Hacks . | . . . . Repair Station Hacks . | . . . . Recycling Unit Hacks . | . . . . Scanalyzer . | . . . . Garrison Access Hacks . | . . . . Unauthorized Hacks . | . . . . Terminals . | . . . . Fabricators . | . . . . Repair Stations . | . . . . Recycling Units . | . . . . Scanalyzers . | . . . . Garrison Access . | . . . . Data Cores Recovered . | . . . . Used . | . . . . Hacking Detections . | . . . . Full Trace Events . | . . . . Feedback Events . | . . . . Feedback Blocked . | . . . . Robot Schematics Acquired . | . . . . Robots Built . | . . . . Authchips . | . . . . Time . | . . . . Total Robot Build Rating . | . . . . Part Schematics Acquired . | . . . . Parts Built . | . . . . Authchips . | . . . . Time . | . . . . Total Part Build Rating . | . . . . Parts Repaired . | . . . . Time . | . . . . Parts Recycled . | . . . . Recycled Matter . | . . . . Retrieved Matter . | . . . . Retrieved Components . | . . . . Parts Scanalyzed . | . . . . Part Schematics Acquired . | . . . . Parts Damaged . | . . . . Bothacking | -11 -10 -9 -8 ------------ Run | Yrd Mat Mat Mat Used RIF Installer . | . . . . Robots Hacked . | . . . . Non-combat . | . . . . Combat . | . . . . Robot Hacks Applied . | . . . . Relay Couplers Released . | . . . . Fabnet Peak Effective % . | . . . . Robots Rewired . | . . . . Allies Hacked . | . . . . Hacks Repelled . | . . . . Allies | -11 -10 -9 -8 -------- Run | Yrd Mat Mat Mat Total Allies . | . . . . Largest Group . | . . . . Highest-Rated Group . | . . . . Highest-Rated Ally . | . . . . Total Orders . | . . . . Ally Attacks . | . . . . Total Damage . | . . . . Kills . | . . . . Allies Corrupted . | . . . . Allies Melted . | . . . . Intel | -11 -10 -9 -8 ------- Run | Yrd Mat Mat Mat Active Infowar (turns) 1071 | . . . 1071 Optics 1071 | . . . 1071 Robot Analysis Total . | . . . . Derelict Logs Recovered . | . . . . Drone Launches . | . . . . Drone Recoveries . | . . . . Exploration | -11 -10 -9 -8 ------------- Run | Yrd Mat Mat Mat Turns Passed 1844 | 59 333 381 1071 Spaces Moved 1069 | 46 227 206 590 Core 66 | 13 . . 53 Treads . | . . . . Legs 802 | 33 227 206 336 Wheels 190 | . . . 190 Hover . | . . . . Flight 11 | . . . 11 Fastest Speed 50 | 50 120 120 80 Average Speed 125 | 100 120 120 131 Slowest Speed 500 | 120 120 120 500 Overloaded Moves . | . . . . Propulsion Burnouts . | . . . . Robots Hopped . | . . . . Potential Cave-ins . | . . . . Cave-ins Triggered . | . . . . Exploration Rate (%) 22 | 4 42 22 23 Regions Visited 3 Branch Regions . Pre-discovered Areas . | . . . . Known Exits Taken . | . . . . Unknown Exits Taken 3 | 1 1 1 . Scrap Searched . | . . . . Spaces Dug . | . . . . Terrain Destroyed 32 | . . . 32 Melee . | . . . . Projectile . | . . . . AOE 32 | . . . 32 Terrain Rammed . | . . . . Walls Destroyed . | . . . . Machines Disabled . | . . . . Actions | -11 -10 -9 -8 --------- Run | Yrd Mat Mat Mat Total 1373 | 56 253 280 784 Wait 116 | . 3 30 83 Move 1066 | 45 226 205 590 Hop . | . . . . Pick Up 20 | 5 4 6 5 Fast Attach 21 | 5 4 2 10 Attach 9 | 1 . 2 6 Detach . | . . . . Swap 2 | . . 1 1 Drop 9 | . . 4 5 Fire 130 | . 16 30 84 Melee . | . . . . Ram . | . . . . Kick . | . . . . Crush . | . . . . Escape Stasis . | . . . . Rewire . | . . . . Trap . | . . . . Miscellaneous . | . . . . Route ------- -11/Scrapyard -10/Materials -9/Materials -8/Materials History --------- Turn | Location | Event 10 | -11/Scrapyard | Discovered new exit (range 15) 60 | -11/Scrapyard | Entered Materials 322 | -10/Materials | Discovered new exit (range 13) 328 | -10/Materials | Build established: Mutant 393 | -10/Materials | Entered another Materials area 393 | -9/Materials | Evolved 2 slots: Propulsion x2 748 | -9/Materials | Discovered new exit (range 12) 774 | -9/Materials | Entered another Materials area 774 | -8/Materials | Evolved 2 slots: Utility x2 1069 | -8/Materials | Build established: Scavenger-Mutant 1438 | -8/Materials | Core integrity fell below 50% 1457 | -8/Materials | Core integrity fell below 20% 1462 | -8/Materials | Lost 11 parts (1p6n2u2w) 1668 | -8/Materials | Build established: Mutant 1845 | -8/Materials | Destroyed by H-61 Shepherd with Heavy Assault Cannon Last Messages --------------- 01777_ K-01 Serf collects debris. 01783_ Acquired Wheel. 01785_ Acquired 23 matter. 01785_ K-01 Serf collects debris. 01785_ Extracted 95 matter. 01789_ K-01 Serf collects debris. 01801_ Acquired Titanium Leg. 01821_ ALERT: Suspicious intruders detected, dispatching Specialist reinforcements to area. 01834_ Heat Sink destroyed. 01837_ Penetrated by Slug. 01841_ H-61 Shepherd calls for reinforcements. 01841_ ALERT: Hostile activity reported, dispatching reinforcements to area. 01842_ Penetrated by Slug. 01843_ X-62 Marksman suffers critical hit (Blast). 01843_ X-62 Marksman destroyed. 01844_ Critical hit (Burn: +37). 01845_ Slug penetrates Wall. Map ----- +----------------------------------------------------+ | | | | | | | ?????????????????????????????????????????????????? | | ?????????????????????????????????????????????????? | | ?????????????????????????????????????????????????? | | ?????????????????????????????????????????????????? | | ?????????????????????????"???????????????????????? | | ?????????????????????????"???????????????????????? | | ????????????????????????? ???????????????????????? | | ????????????????????????#/##?????????????????????? | | ???????????##########??? Y ?????????????????????? | | ########???# #??? ?????????????????????? | | "" """ #???# #??? ??????????????????????? | | "" """ #???# #??? Y ???????#??????????????? | | "" """ #???# #??? ?????? #??????????????? | | #???#| #???# #????? #??????????????? | | ##### #???# #????% #######????????? | | + + ##### #####g ???????? | | ##### ## =gH ???????? | | # ??# =## *!x ???????? | | ################+##### #?????????????? | | T t #?????????????? | | ######## #;######/#?????????????? | | #######?# ;#?????????????????????? | | ## #?#@#??????????????????????? | | !# ### #??????????????????????? | | ######### #??????????????????????? | | # ## +??????????????????????? | | # ####??????????????????????? | | " # ##????????????????????????? | | ! * # ##????????????????????????? | | !* # #?????????????????????????? | | # #?????????????????????????? | | +####### ! # #?????????????????????????? | | # # #?????????????????????????? | | "" """ # # #?????????????????????????? | | "" """ # + #?????????????????????????? | | "" """ + " # #?????????????????????????? | | # T" # #?????????????????????????? | | # "" # #?????????????????????????? | | ######## ##############???????????????????? | | + + #???????????????????? | | ######### # "" #???????????????????? | | #???????# + "T """"" #???????????????????? | | #???????# # "" """"" #???????????????????? | | #???????# # """"" #???????????????????? | | #??????## ##############???????????????????? | | #+########## #???????????????????????????????? | | #???????????????????????????????? | +----------------------------------------------------+ Best States ------------- Heat Dissipation 41 Energy Generation 14 Energy Capacity 280 Matter Stores 300 Matter Capacity 300 Sight Range 18 Terrain Scan Density 10 Armor Coverage 150 Core Shielding 20 Evasion (%) 55 Item Schematics ----------------- None Robot Schematics ------------------ None Fabricated ------------ Nothing Repaired ---------- Nothing Alien Tech Used ----------------- None Achievements -------------- None Challenges ------------ None Game ------ Seed SapperQuantumMesh Manual? 0 Play Time 00:31:21 Cumulative 5.0 hours Start 2025.06.22 @ 21:34:24 End 2025.06.22 @ 22:12:16 Sessions 1 Manual Loads 0 Difficulty Rogue Special Mode None Game No. 5 Rogue 5 Adventurer 0 Explorer 0 Win Type - Total 0 Types 0/0/0/0/0/0/0/0/0/0 Lore% 2 Gallery% 6 Achievement% 9 Wizard Run 0 Options --------- Layout 1 ASCII 0 Keyboard 0 Movement Mouse Keybinds 0 Fullscreen 1 Font 32/SmallcapsGlow Map View 50x35 Zoom Use 0% Tactical HUD 1 Map Filters NONE Filters NONE Steam 1 RUN: e6cc72ac-d946-400d-a51c-fde4399f7ea5